[Event "Titled Tuesday Blitz June 27 Early 2023"]
[White "Petrova, Irina"]
[Black "Adla, Diego"]
[WhiteFideId "14124122"]
[BlackFideId "100072"]
[WhiteElo "2404"]
[BlackElo "2546"]
[Result "0-1"]
[Round "5"]
[TimeControl "180+2"]
[Date "2023.06.27"]
[WhiteClock "0:00:00"]
[BlackClock "0:01:06"]
[Board "147"]

1. e4 {[%clk 0:03:00]}  e5 {[%clk 0:02:59]} 2. Nf3 {[%clk 0:03:00]}  Nc6 {[%clk 0:02:59]} 3. Bc4 {[%clk 0:03:00]}  Nf6 {[%clk 0:02:59]} 4. d3 {[%clk 0:02:55]}  Bc5 {[%clk 0:02:58]} 5. Nc3 {[%clk 0:02:55]}  O-O {[%clk 0:02:56]} 6. Bg5 {[%clk 0:02:52]}  h6 {[%clk 0:02:54]} 7. Bh4 {[%clk 0:02:48]}  Be7 {[%clk 0:02:53]} 8. Bg3 {[%clk 0:02:25]}  d6 {[%clk 0:02:52]} 9. Nd5 {[%clk 0:02:20]}  Na5 {[%clk 0:02:49]} 10. Nxf6+ {[%clk 0:02:02]}  Bxf6 {[%clk 0:02:48]} 11. Bb5 {[%clk 0:02:03]}  c6 {[%clk 0:02:48]} 12. Ba4 {[%clk 0:02:02]}  b5 {[%clk 0:02:48]} 13. Bb3 {[%clk 0:02:02]}  Bg4 {[%clk 0:02:42]} 14. h3 {[%clk 0:02:01]}  Bh5 {[%clk 0:02:42]} 15. Bh2 {[%clk 0:01:57]}  Nxb3 {[%clk 0:02:40]} 16. axb3 {[%clk 0:01:57]}  Be7 {[%clk 0:02:36]} 17. g4 {[%clk 0:01:55]}  Bg6 {[%clk 0:02:37]} 18. Nd2 {[%clk 0:01:55]}  a5 {[%clk 0:02:35]} 19. Qf3 {[%clk 0:01:52]}  f6 {[%clk 0:02:32]} 20. Nf1 {[%clk 0:01:41]}  a4 {[%clk 0:02:29]} 21. bxa4 {[%clk 0:01:39]}  Rxa4 {[%clk 0:02:30]} 22. Rxa4 {[%clk 0:01:35]}  bxa4 {[%clk 0:02:31]} 23. Ne3 {[%clk 0:01:28]}  Qb6 {[%clk 0:02:31]} 24. Nc4 {[%clk 0:01:27]}  Qb5 {[%clk 0:02:31]} 25. O-O {[%clk 0:01:13]}  Bf7 {[%clk 0:02:30]} 26. b3 {[%clk 0:00:44]}  axb3 {[%clk 0:02:28]} 27. cxb3 {[%clk 0:00:44]}  Qxb3 {[%clk 0:02:28]} 28. Rc1 {[%clk 0:00:44]}  d5 {[%clk 0:02:14]} 29. exd5 {[%clk 0:00:24]}  cxd5 {[%clk 0:02:15]} 30. Ne3 {[%clk 0:00:19]}  Qxd3 {[%clk 0:02:06]} 31. Rd1 {[%clk 0:00:18]}  Qe4 {[%clk 0:02:06]} 32. Qxe4 {[%clk 0:00:15]}  dxe4 {[%clk 0:02:06]} 33. Nf5 {[%clk 0:00:16]}  Re8 {[%clk 0:02:05]} 34. Nxe7+ {[%clk 0:00:14]}  Rxe7 {[%clk 0:02:04]} 35. Kf1 {[%clk 0:00:14]}  Bc4+ {[%clk 0:02:02]} 36. Ke1 {[%clk 0:00:14]}  Bd3 {[%clk 0:02:03]} 37. Rc1 {[%clk 0:00:13]}  Rb7 {[%clk 0:02:03]} 38. Rc8+ {[%clk 0:00:09]}  Kh7 {[%clk 0:02:02]} 39. Rc1 {[%clk 0:00:08]}  Rb2 {[%clk 0:02:01]} 40. Bg3 {[%clk 0:00:08]}  Kg6 {[%clk 0:02:00]} 41. Kd1 {[%clk 0:00:06]}  h5 {[%clk 0:01:57]} 42. Ke1 {[%clk 0:00:06]}  hxg4 {[%clk 0:01:57]} 43. hxg4 {[%clk 0:00:07]}  Kg5 {[%clk 0:01:57]} 44. Rc7 {[%clk 0:00:06]}  g6 {[%clk 0:01:50]} 45. Rh7 {[%clk 0:00:07]}  Kxg4 {[%clk 0:01:48]} 46. Rh6 {[%clk 0:00:07]}  Kf5 {[%clk 0:01:43]} 47. Rh8 {[%clk 0:00:06]}  e3 {[%clk 0:01:20]} 48. fxe3 {[%clk 0:00:07]}  Re2+ {[%clk 0:01:20]} 49. Kd1 {[%clk 0:00:05]}  Rxe3 {[%clk 0:01:20]} 50. Bf2 {[%clk 0:00:06]}  Rf3 {[%clk 0:01:19]} 51. Bc5 {[%clk 0:00:05]}  Be4 {[%clk 0:01:19]} 52. Kd2 {[%clk 0:00:05]}  Rd3+ {[%clk 0:01:18]} 53. Ke2 {[%clk 0:00:05]}  Rc3 {[%clk 0:01:17]} 54. Be7 {[%clk 0:00:04]}  Ke6 {[%clk 0:01:15]} 55. Bd8 {[%clk 0:00:03]}  Rc8 {[%clk 0:01:09]} 56. Bxf6 {[%clk 0:00:00]}  Rc2+ {[%clk 0:01:06]} 0-1


[Site "https://www.chess.com"]

[Event "Titled Tuesday Blitz June 27 Early 2023"]
[White "Molina Carretero, Daniel"]
[Black "Bilan, Danila"]
[WhiteFideId "32071914"]
[BlackFideId "24161918"]
[WhiteElo "2403"]
[BlackElo "2540"]
[Result "1-0"]
[Round "5"]
[TimeControl "180+2"]
[Date "2023.06.27"]
[WhiteClock "0:00:34"]
[BlackClock "0:00:00"]
[Board "148"]

1. c4 {[%clk 0:02:51]}  c6 {[%clk 0:02:59]} 2. Nf3 {[%clk 0:02:50]}  d5 {[%clk 0:03:00]} 3. b3 {[%clk 0:02:51]}  Nf6 {[%clk 0:03:00]} 4. g3 {[%clk 0:02:50]}  Bf5 {[%clk 0:02:59]} 5. Bg2 {[%clk 0:02:51]}  e6 {[%clk 0:02:59]} 6. O-O {[%clk 0:02:51]}  h6 {[%clk 0:02:59]} 7. Bb2 {[%clk 0:02:51]}  Nbd7 {[%clk 0:03:00]} 8. a3 {[%clk 0:02:49]}  a5 {[%clk 0:02:53]} 9. d3 {[%clk 0:02:49]}  Be7 {[%clk 0:02:42]} 10. Nbd2 {[%clk 0:02:50]}  O-O {[%clk 0:02:41]} 11. Ra2 {[%clk 0:02:50]}  a4 {[%clk 0:02:30]} 12. b4 {[%clk 0:02:50]}  b5 {[%clk 0:02:09]} 13. Qa1 {[%clk 0:02:38]}  Bh7 {[%clk 0:01:50]} 14. Rc1 {[%clk 0:02:36]}  Rc8 {[%clk 0:01:33]} 15. Ne5 {[%clk 0:02:33]}  Nxe5 {[%clk 0:01:26]} 16. Bxe5 {[%clk 0:02:34]}  Ne8 {[%clk 0:01:09]} 17. Nf3 {[%clk 0:02:29]}  Bf6 {[%clk 0:01:03]} 18. cxb5 {[%clk 0:02:18]}  cxb5 {[%clk 0:01:00]} 19. Rac2 {[%clk 0:02:18]}  Rxc2 {[%clk 0:00:48]} 20. Rxc2 {[%clk 0:02:19]}  Nd6 {[%clk 0:00:43]} 21. Rc6 {[%clk 0:02:07]}  Ne8 {[%clk 0:00:24]} 22. Qc3 {[%clk 0:01:58]}  Bxe5 {[%clk 0:00:19]} 23. Qxe5 {[%clk 0:01:45]}  Nf6 {[%clk 0:00:15]} 24. Nd4 {[%clk 0:01:41]}  Qa8 {[%clk 0:00:10]} 25. Qc7 {[%clk 0:01:34]}  Rb8 {[%clk 0:00:05]} 26. Nxb5 {[%clk 0:01:24]}  Bf5 {[%clk 0:00:02]} 27. Nd6 {[%clk 0:01:09]}  Bg6 {[%clk 0:00:02]} 28. Qxb8+ {[%clk 0:00:59]}  Qxb8 {[%clk 0:00:03]} 29. Rc8+ {[%clk 0:00:59]}  Qxc8 {[%clk 0:00:04]} 30. Nxc8 {[%clk 0:01:00]}  Nd7 {[%clk 0:00:04]} 31. b5 {[%clk 0:00:48]}  Kf8 {[%clk 0:00:04]} 32. b6 {[%clk 0:00:48]}  Ke8 {[%clk 0:00:04]} 33. b7 {[%clk 0:00:46]}  Kd8 {[%clk 0:00:02]} 34. Nb6 {[%clk 0:00:46]}  Nb8 {[%clk 0:00:02]} 35. Nxa4 {[%clk 0:00:44]}  Kc7 {[%clk 0:00:02]} 36. Nc5 {[%clk 0:00:41]}  Kc6 {[%clk 0:00:01]} 37. d4 {[%clk 0:00:37]}  Bc2 {[%clk 0:00:01]} 38. e3 {[%clk 0:00:36]}  Kb6 {[%clk 0:00:00]} 39. Bf1 {[%clk 0:00:34]} 1-0


[Site "https://www.chess.com"]

[Event "Titled Tuesday Blitz June 27 Early 2023"]
[White "FuenfgegenWilly"]
[Black "Delorme, Axel"]
[BlackFideId "632023"]
[WhiteElo "2390"]
[BlackElo "2534"]
[Result "0-1"]
[Round "5"]
[TimeControl "180+2"]
[Date "2023.06.27"]
[WhiteClock "0:01:39"]
[BlackClock "0:02:20"]
[Board "149"]

1. d4 {[%clk 0:02:57]}  d5 {[%clk 0:02:59]} 2. c4 {[%clk 0:02:56]}  e6 {[%clk 0:03:00]} 3. Nc3 {[%clk 0:02:56]}  c5 {[%clk 0:03:01]} 4. Nf3 {[%clk 0:02:49]}  cxd4 {[%clk 0:03:00]} 5. Nxd4 {[%clk 0:02:49]}  e5 {[%clk 0:02:59]} 6. Nf3 {[%clk 0:02:49]}  d4 {[%clk 0:02:59]} 7. Nd5 {[%clk 0:02:49]}  Nc6 {[%clk 0:02:59]} 8. e3 {[%clk 0:02:48]}  Nf6 {[%clk 0:02:58]} 9. exd4 {[%clk 0:02:47]}  e4 {[%clk 0:02:44]} 10. Nxf6+ {[%clk 0:02:28]}  Qxf6 {[%clk 0:02:43]} 11. Ng5 {[%clk 0:01:46]}  Bb4+ {[%clk 0:02:37]} 12. Ke2 {[%clk 0:01:41]}  Nxd4+ {[%clk 0:02:25]} 13. Ke3 {[%clk 0:01:41]}  Qxg5+ {[%clk 0:02:20]} 14. Kxd4 {[%clk 0:01:39]}  Qd8+ {[%clk 0:02:20]} 0-1


[Site "https://www.chess.com"]

[Event "Titled Tuesday Blitz June 27 Early 2023"]
[White "Kuzmin, Roman"]
[Black "Fajdetic, Hrvoje"]
[WhiteFideId "44134932"]
[BlackFideId "14501945"]
[WhiteElo "2527"]
[BlackElo "2355"]
[Result "1-0"]
[Round "5"]
[TimeControl "180+2"]
[Date "2023.06.27"]
[WhiteClock "0:00:21"]
[BlackClock "0:00:00"]
[Board "151"]

1. e4 {[%clk 0:02:51]}  c5 {[%clk 0:02:59]} 2. Nf3 {[%clk 0:02:50]}  a6 {[%clk 0:02:59]} 3. c4 {[%clk 0:02:45]}  Nc6 {[%clk 0:02:58]} 4. d4 {[%clk 0:02:45]}  cxd4 {[%clk 0:02:58]} 5. Nxd4 {[%clk 0:02:46]}  g6 {[%clk 0:02:58]} 6. Be3 {[%clk 0:02:43]}  Bg7 {[%clk 0:02:58]} 7. Nc3 {[%clk 0:02:44]}  Nf6 {[%clk 0:02:56]} 8. Nxc6 {[%clk 0:02:28]}  dxc6 {[%clk 0:02:51]} 9. Qxd8+ {[%clk 0:02:26]}  Kxd8 {[%clk 0:02:51]} 10. O-O-O+ {[%clk 0:02:24]}  Ke8 {[%clk 0:02:32]} 11. f3 {[%clk 0:02:02]}  Be6 {[%clk 0:02:22]} 12. Na4 {[%clk 0:01:57]}  b5 {[%clk 0:02:11]} 13. Nc5 {[%clk 0:01:24]}  Bxc4 {[%clk 0:02:09]} 14. Bxc4 {[%clk 0:01:24]}  bxc4 {[%clk 0:02:10]} 15. Bd4 {[%clk 0:01:22]}  h5 {[%clk 0:01:05]} 16. Kc2 {[%clk 0:01:07]}  h4 {[%clk 0:01:04]} 17. Kc3 {[%clk 0:01:06]}  Rh5 {[%clk 0:00:57]} 18. Kxc4 {[%clk 0:01:02]}  Rd8 {[%clk 0:00:37]} 19. b4 {[%clk 0:00:54]}  a5 {[%clk 0:00:35]} 20. bxa5 {[%clk 0:00:52]}  Ra8 {[%clk 0:00:09]} 21. a6 {[%clk 0:00:52]}  Rg5 {[%clk 0:00:05]} 22. Rd2 {[%clk 0:00:50]}  Nh5 {[%clk 0:00:05]} 23. Bxg7 {[%clk 0:00:47]}  Nxg7 {[%clk 0:00:06]} 24. Rb1 {[%clk 0:00:30]}  Rxc5+ {[%clk 0:00:05]} 25. Kxc5 {[%clk 0:00:30]}  Ne6+ {[%clk 0:00:05]} 26. Kc4 {[%clk 0:00:29]}  Kf8 {[%clk 0:00:04]} 27. Rb6 {[%clk 0:00:28]}  c5 {[%clk 0:00:03]} 28. Rdb2 {[%clk 0:00:25]}  Kg7 {[%clk 0:00:03]} 29. Rc6 {[%clk 0:00:23]}  Nd4 {[%clk 0:00:03]} 30. Rxc5 {[%clk 0:00:21]}  Ne6 {[%clk 0:00:00]} 31. Ra5 {[%clk 0:00:21]} 1-0


[Site "https://www.chess.com"]

[Event "Titled Tuesday Blitz June 27 Early 2023"]
[White "Bruedigam, Martin"]
[Black "arenal72"]
[WhiteFideId "24608033"]
[WhiteElo "2527"]
[BlackElo "2355"]
[Result "1/2-1/2"]
[Round "5"]
[TimeControl "180+2"]
[Date "2023.06.27"]
[WhiteClock "0:00:15"]
[BlackClock "0:00:04"]
[Board "152"]

1. d4 {[%clk 0:03:00]}  Nf6 {[%clk 0:02:55]} 2. c4 {[%clk 0:03:01]}  g6 {[%clk 0:02:53]} 3. f3 {[%clk 0:03:01]}  Bg7 {[%clk 0:02:52]} 4. e4 {[%clk 0:03:01]}  d6 {[%clk 0:02:52]} 5. Nc3 {[%clk 0:03:01]}  O-O {[%clk 0:02:51]} 6. Be3 {[%clk 0:03:02]}  c5 {[%clk 0:02:44]} 7. d5 {[%clk 0:02:58]}  e6 {[%clk 0:02:37]} 8. Qd2 {[%clk 0:02:58]}  exd5 {[%clk 0:02:36]} 9. cxd5 {[%clk 0:02:59]}  a6 {[%clk 0:02:29]} 10. a4 {[%clk 0:02:59]}  Qc7 {[%clk 0:02:28]} 11. Nge2 {[%clk 0:02:56]}  Nbd7 {[%clk 0:02:24]} 12. Ng3 {[%clk 0:02:57]}  h5 {[%clk 0:02:12]} 13. Bg5 {[%clk 0:02:54]}  Nh7 {[%clk 0:02:07]} 14. Bh6 {[%clk 0:02:54]}  h4 {[%clk 0:02:01]} 15. Bxg7 {[%clk 0:02:46]}  Kxg7 {[%clk 0:02:00]} 16. Nge2 {[%clk 0:02:43]}  c4 {[%clk 0:01:49]} 17. Nf4 {[%clk 0:02:42]}  Ne5 {[%clk 0:01:49]} 18. Be2 {[%clk 0:02:41]}  h3 {[%clk 0:01:45]} 19. g3 {[%clk 0:02:33]}  Qc5 {[%clk 0:01:24]} 20. a5 {[%clk 0:02:29]}  Bd7 {[%clk 0:01:20]} 21. Na4 {[%clk 0:02:21]}  Bxa4 {[%clk 0:01:17]} 22. Rxa4 {[%clk 0:02:22]}  b5 {[%clk 0:01:05]} 23. axb6 {[%clk 0:02:20]}  Rfb8 {[%clk 0:01:04]} 24. Nxh3 {[%clk 0:02:13]}  Rxb6 {[%clk 0:01:00]} 25. Nf2 {[%clk 0:02:11]}  Rab8 {[%clk 0:00:59]} 26. Ra2 {[%clk 0:02:09]}  Rb3 {[%clk 0:00:39]} 27. O-O {[%clk 0:02:07]}  Rxf3 {[%clk 0:00:32]} 28. Kg2 {[%clk 0:02:05]}  Rf6 {[%clk 0:00:29]} 29. Rxa6 {[%clk 0:02:01]}  Qb4 {[%clk 0:00:26]} 30. Qxb4 {[%clk 0:01:54]}  Rxb4 {[%clk 0:00:27]} 31. Nd1 {[%clk 0:01:54]}  Rxf1 {[%clk 0:00:27]} 32. Kxf1 {[%clk 0:01:55]}  Nf6 {[%clk 0:00:27]} 33. Rxd6 {[%clk 0:01:35]}  Nxe4 {[%clk 0:00:27]} 34. Rd8 {[%clk 0:01:35]}  Rb6 {[%clk 0:00:24]} 35. Re8 {[%clk 0:01:26]}  f6 {[%clk 0:00:22]} 36. g4 {[%clk 0:01:11]}  Kf7 {[%clk 0:00:22]} 37. Rc8 {[%clk 0:01:08]}  g5 {[%clk 0:00:21]} 38. Ke1 {[%clk 0:01:00]}  Nd6 {[%clk 0:00:21]} 39. Rc5 {[%clk 0:00:57]}  Ke7 {[%clk 0:00:20]} 40. Ra5 {[%clk 0:00:49]}  Kd7 {[%clk 0:00:20]} 41. Kd2 {[%clk 0:00:45]}  Rb3 {[%clk 0:00:16]} 42. Ra7+ {[%clk 0:00:42]}  Kc8 {[%clk 0:00:16]} 43. Nc3 {[%clk 0:00:39]}  Rxb2+ {[%clk 0:00:16]} 44. Ke3 {[%clk 0:00:40]}  Rb3 {[%clk 0:00:11]} 45. Kd4 {[%clk 0:00:34]}  Rxc3 {[%clk 0:00:12]} 46. Ra6 {[%clk 0:00:28]}  Nb5+ {[%clk 0:00:11]} 47. Kc5 {[%clk 0:00:29]}  Rb3 {[%clk 0:00:09]} 48. Bxc4 {[%clk 0:00:26]}  Rc3 {[%clk 0:00:06]} 49. Kxb5 {[%clk 0:00:25]}  Rxc4 {[%clk 0:00:06]} 50. Rxf6 {[%clk 0:00:21]}  Rxg4 {[%clk 0:00:06]} 51. Rf5 {[%clk 0:00:20]}  Nd7 {[%clk 0:00:04]} 52. Kc6 {[%clk 0:00:18]}  Rc4+ {[%clk 0:00:05]} 53. Kd6 {[%clk 0:00:18]}  Rf4 {[%clk 0:00:02]} 54. Rxg5 {[%clk 0:00:18]}  Nb6 {[%clk 0:00:01]} 55. Kc6 {[%clk 0:00:17]}  Rf6+ {[%clk 0:00:02]} 56. d6 {[%clk 0:00:17]}  Nd7 {[%clk 0:00:02]} 57. Rg8+ {[%clk 0:00:17]}  Nf8 {[%clk 0:00:03]} 58. h4 {[%clk 0:00:16]}  Kd8 {[%clk 0:00:03]} 59. h5 {[%clk 0:00:17]}  Ke8 {[%clk 0:00:03]} 60. h6 {[%clk 0:00:16]}  Rxh6 {[%clk 0:00:03]} 61. Kc7 {[%clk 0:00:15]}  Rh7+ {[%clk 0:00:03]} 62. Kc8 {[%clk 0:00:15]}  Kf7 {[%clk 0:00:03]} 63. Rxf8+ {[%clk 0:00:15]}  Kxf8 {[%clk 0:00:03]} 64. d7 {[%clk 0:00:15]}  Rxd7 {[%clk 0:00:04]} 65. Kxd7 {[%clk 0:00:15]} 1/2-1/2


[Site "https://www.chess.com"]

[Event "Titled Tuesday Blitz June 27 Early 2023"]
[White "Romero Ruscalleda, Josep"]
[Black "Yelisieiev, Yevhenii"]
[WhiteFideId "2231859"]
[BlackFideId "14139642"]
[WhiteElo "2350"]
[BlackElo "2523"]
[Result "1-0"]
[Round "5"]
[TimeControl "180+2"]
[Date "2023.06.27"]
[WhiteClock "0:00:06"]
[BlackClock "0:00:00"]
[Board "153"]

1. e4 {[%clk 0:02:58]}  d6 {[%clk 0:03:00]} 2. d4 {[%clk 0:02:57]}  Nf6 {[%clk 0:03:01]} 3. Nc3 {[%clk 0:02:56]}  e5 {[%clk 0:03:02]} 4. Nf3 {[%clk 0:02:55]}  Nbd7 {[%clk 0:03:02]} 5. Bc4 {[%clk 0:02:55]}  Be7 {[%clk 0:03:02]} 6. O-O {[%clk 0:02:53]}  O-O {[%clk 0:03:03]} 7. h3 {[%clk 0:02:52]}  c6 {[%clk 0:03:03]} 8. a4 {[%clk 0:02:50]}  a5 {[%clk 0:02:58]} 9. Be3 {[%clk 0:02:48]}  Nb6 {[%clk 0:02:55]} 10. Bd3 {[%clk 0:02:44]}  Nfd7 {[%clk 0:02:54]} 11. dxe5 {[%clk 0:02:35]}  dxe5 {[%clk 0:02:55]} 12. Qe2 {[%clk 0:02:34]}  Qc7 {[%clk 0:02:55]} 13. Rfd1 {[%clk 0:02:33]}  Nc5 {[%clk 0:02:54]} 14. Bg5 {[%clk 0:02:04]}  Be6 {[%clk 0:02:46]} 15. Bxe7 {[%clk 0:02:01]}  Qxe7 {[%clk 0:02:45]} 16. Nxe5 {[%clk 0:01:47]}  Rae8 {[%clk 0:02:06]} 17. Nf3 {[%clk 0:01:41]}  Kh8 {[%clk 0:01:31]} 18. Nd4 {[%clk 0:01:23]}  Bc8 {[%clk 0:01:28]} 19. Re1 {[%clk 0:01:14]}  Nxd3 {[%clk 0:01:08]} 20. Qxd3 {[%clk 0:01:06]}  Rd8 {[%clk 0:01:08]} 21. Nce2 {[%clk 0:00:26]}  Rfe8 {[%clk 0:00:45]} 22. Qb3 {[%clk 0:00:23]}  Nd7 {[%clk 0:00:43]} 23. Nf5 {[%clk 0:00:20]}  Qf6 {[%clk 0:00:34]} 24. Neg3 {[%clk 0:00:18]}  g6 {[%clk 0:00:27]} 25. Nh6 {[%clk 0:00:18]}  Re7 {[%clk 0:00:17]} 26. Ng4 {[%clk 0:00:16]}  Qg7 {[%clk 0:00:17]} 27. e5 {[%clk 0:00:15]}  h5 {[%clk 0:00:14]} 28. e6 {[%clk 0:00:10]}  hxg4 {[%clk 0:00:12]} 29. exd7 {[%clk 0:00:10]}  Rexd7 {[%clk 0:00:10]} 30. hxg4 {[%clk 0:00:09]}  Rd4 {[%clk 0:00:10]} 31. f3 {[%clk 0:00:08]}  Rb4 {[%clk 0:00:10]} 32. Qe3 {[%clk 0:00:07]}  Rxb2 {[%clk 0:00:08]} 33. Ne4 {[%clk 0:00:07]}  Rxc2 {[%clk 0:00:05]} 34. Rad1 {[%clk 0:00:07]}  Rxd1 {[%clk 0:00:03]} 35. Rxd1 {[%clk 0:00:07]}  Be6 {[%clk 0:00:04]} 36. Rd8+ {[%clk 0:00:06]}  Kh7 {[%clk 0:00:04]} 37. Ng5+ {[%clk 0:00:05]}  Kh6 {[%clk 0:00:02]} 38. Nxe6+ {[%clk 0:00:05]}  g5 {[%clk 0:00:01]} 39. Nxg7 {[%clk 0:00:05]}  Kxg7 {[%clk 0:00:01]} 40. Qe5+ {[%clk 0:00:05]}  Kh7 {[%clk 0:00:02]} 41. Qf5+ {[%clk 0:00:05]}  Kg7 {[%clk 0:00:00]} 42. Qxc2 {[%clk 0:00:06]} 1-0


[Site "https://www.chess.com"]

[Event "Titled Tuesday Blitz June 27 Early 2023"]
[White "Matyukov, Petr"]
[Black "Mayaud, Raphael"]
[WhiteFideId "4103688"]
[BlackFideId "627151"]
[WhiteElo "2505"]
[BlackElo "2332"]
[Result "0-1"]
[Round "5"]
[TimeControl "180+2"]
[Date "2023.06.27"]
[WhiteClock "0:00:42"]
[BlackClock "0:00:27"]
[Board "155"]

1. d4 {[%clk 0:03:00]}  Nf6 {[%clk 0:02:59]} 2. c4 {[%clk 0:03:01]}  c5 {[%clk 0:02:59]} 3. d5 {[%clk 0:03:01]}  b5 {[%clk 0:03:00]} 4. cxb5 {[%clk 0:03:01]}  a6 {[%clk 0:03:01]} 5. bxa6 {[%clk 0:03:01]}  g6 {[%clk 0:03:01]} 6. Nc3 {[%clk 0:03:02]}  Bg7 {[%clk 0:03:01]} 7. e4 {[%clk 0:03:01]}  O-O {[%clk 0:03:01]} 8. Be2 {[%clk 0:02:57]}  Qa5 {[%clk 0:02:54]} 9. Bd2 {[%clk 0:02:56]}  Bxa6 {[%clk 0:02:47]} 10. Nf3 {[%clk 0:02:52]}  Bxe2 {[%clk 0:02:43]} 11. Qxe2 {[%clk 0:02:52]}  Qa6 {[%clk 0:02:42]} 12. a4 {[%clk 0:02:45]}  e6 {[%clk 0:02:39]} 13. dxe6 {[%clk 0:02:39]}  Qxe2+ {[%clk 0:02:27]} 14. Kxe2 {[%clk 0:02:39]}  fxe6 {[%clk 0:02:26]} 15. Ra3 {[%clk 0:02:36]}  d5 {[%clk 0:02:24]} 16. exd5 {[%clk 0:02:32]}  exd5 {[%clk 0:02:24]} 17. Nb5 {[%clk 0:02:19]}  Ne4 {[%clk 0:01:37]} 18. b3 {[%clk 0:02:12]}  Nc6 {[%clk 0:01:12]} 19. Rc1 {[%clk 0:02:00]}  Nxd2 {[%clk 0:01:07]} 20. Kxd2 {[%clk 0:01:49]}  Bh6+ {[%clk 0:01:05]} 21. Kd1 {[%clk 0:01:35]}  Bxc1 {[%clk 0:01:06]} 22. Kxc1 {[%clk 0:01:35]}  Nb4 {[%clk 0:01:00]} 23. Kd2 {[%clk 0:01:30]}  Rfb8 {[%clk 0:00:49]} 24. Ne5 {[%clk 0:01:19]}  Rxb5 {[%clk 0:00:44]} 25. Ra1 {[%clk 0:01:15]}  Rbb8 {[%clk 0:00:42]} 26. Rc1 {[%clk 0:01:14]}  Rc8 {[%clk 0:00:40]} 27. Nd7 {[%clk 0:01:09]}  Ra6 {[%clk 0:00:29]} 28. Re1 {[%clk 0:00:59]}  c4 {[%clk 0:00:29]} 29. Re7 {[%clk 0:00:49]}  c3+ {[%clk 0:00:28]} 30. Kc1 {[%clk 0:00:48]}  d4 {[%clk 0:00:29]} 31. Nf6+ {[%clk 0:00:45]}  Kf8 {[%clk 0:00:28]} 32. Rxh7 {[%clk 0:00:40]}  Rxf6 {[%clk 0:00:27]} 33. Rh8+ {[%clk 0:00:40]}  Ke7 {[%clk 0:00:28]} 34. Rxc8 {[%clk 0:00:41]}  Rxf2 {[%clk 0:00:28]} 35. Rc7+ {[%clk 0:00:41]}  Kd6 {[%clk 0:00:28]} 36. Rb7 {[%clk 0:00:42]}  Rf1# {[%clk 0:00:27]} 0-1


[Site "https://www.chess.com"]

[Event "Titled Tuesday Blitz June 27 Early 2023"]
[White "Rodriguez Santiago, Jaime"]
[Black "Baches Garcia, Guillermo"]
[WhiteFideId "3100898"]
[BlackFideId "2209764"]
[WhiteElo "2279"]
[BlackElo "2480"]
[Result "0-1"]
[Round "5"]
[TimeControl "180+2"]
[Date "2023.06.27"]
[WhiteClock "0:00:00"]
[BlackClock "0:00:14"]
[Board "159"]

1. c4 {[%clk 0:03:00]}  e6 {[%clk 0:02:59]} 2. Nf3 {[%clk 0:02:57]}  d5 {[%clk 0:03:00]} 3. g3 {[%clk 0:02:56]}  Nf6 {[%clk 0:02:59]} 4. Bg2 {[%clk 0:02:56]}  Bd6 {[%clk 0:03:00]} 5. O-O {[%clk 0:02:54]}  O-O {[%clk 0:03:00]} 6. b3 {[%clk 0:02:54]}  dxc4 {[%clk 0:03:00]} 7. bxc4 {[%clk 0:02:54]}  e5 {[%clk 0:03:00]} 8. d3 {[%clk 0:02:48]}  Re8 {[%clk 0:02:58]} 9. Bb2 {[%clk 0:02:46]}  c6 {[%clk 0:02:52]} 10. Nc3 {[%clk 0:02:44]}  Na6 {[%clk 0:02:47]} 11. e3 {[%clk 0:02:38]}  Nc5 {[%clk 0:02:37]} 12. d4 {[%clk 0:02:23]}  exd4 {[%clk 0:02:36]} 13. exd4 {[%clk 0:02:24]}  Nce4 {[%clk 0:02:34]} 14. Nxe4 {[%clk 0:02:22]}  Nxe4 {[%clk 0:02:34]} 15. Qc2 {[%clk 0:01:54]}  Nf6 {[%clk 0:02:02]} 16. Rfe1 {[%clk 0:01:47]}  Be6 {[%clk 0:02:00]} 17. Rad1 {[%clk 0:01:39]}  Bb4 {[%clk 0:01:54]} 18. Re2 {[%clk 0:01:29]}  Qa5 {[%clk 0:01:44]} 19. a3 {[%clk 0:01:05]}  Bf5 {[%clk 0:01:30]} 20. Rxe8+ {[%clk 0:00:59]}  Rxe8 {[%clk 0:01:29]} 21. Qb3 {[%clk 0:00:57]}  Bf8 {[%clk 0:01:21]} 22. h3 {[%clk 0:00:52]}  b5 {[%clk 0:01:16]} 23. cxb5 {[%clk 0:00:45]}  Qxb5 {[%clk 0:01:13]} 24. Qxb5 {[%clk 0:00:34]}  cxb5 {[%clk 0:01:14]} 25. Ne5 {[%clk 0:00:35]}  a5 {[%clk 0:01:05]} 26. Bc6 {[%clk 0:00:33]}  Rb8 {[%clk 0:00:56]} 27. g4 {[%clk 0:00:30]}  Be4 {[%clk 0:00:47]} 28. Bxe4 {[%clk 0:00:26]}  Nxe4 {[%clk 0:00:46]} 29. d5 {[%clk 0:00:24]}  Nd6 {[%clk 0:00:45]} 30. Nd7 {[%clk 0:00:20]}  Re8 {[%clk 0:00:45]} 31. f4 {[%clk 0:00:16]}  Re2 {[%clk 0:00:45]} 32. Be5 {[%clk 0:00:15]}  Nc4 {[%clk 0:00:43]} 33. Bd4 {[%clk 0:00:12]}  Bd6 {[%clk 0:00:40]} 34. Be5 {[%clk 0:00:08]}  Bxa3 {[%clk 0:00:36]} 35. d6 {[%clk 0:00:05]}  Nd2 {[%clk 0:00:32]} 36. Nb6 {[%clk 0:00:02]}  Bc5+ {[%clk 0:00:31]} 37. Kh1 {[%clk 0:00:02]}  Nf3 {[%clk 0:00:31]} 38. f5 {[%clk 0:00:01]}  Nxe5 {[%clk 0:00:29]} 39. d7 {[%clk 0:00:01]}  Nxd7 {[%clk 0:00:28]} 40. Nxd7 {[%clk 0:00:02]}  Be3 {[%clk 0:00:26]} 41. f6 {[%clk 0:00:02]}  gxf6 {[%clk 0:00:25]} 42. Nxf6+ {[%clk 0:00:00]}  Kg7 {[%clk 0:00:25]} 43. Ne4 {[%clk 0:00:01]}  b4 {[%clk 0:00:23]} 44. Ng3 {[%clk 0:00:02]}  Rd2 {[%clk 0:00:22]} 45. Nf5+ {[%clk 0:00:03]}  Kf6 {[%clk 0:00:22]} 46. Re1 {[%clk 0:00:03]}  Bc5 {[%clk 0:00:18]} 47. Ng3 {[%clk 0:00:03]}  Kg7 {[%clk 0:00:15]} 48. Ne4 {[%clk 0:00:04]}  Rc2 {[%clk 0:00:15]} 49. Ng5 {[%clk 0:00:03]}  b3 {[%clk 0:00:14]} 50. h4 {[%clk 0:00:00]}  b2 {[%clk 0:00:14]} 0-1


[Site "https://www.chess.com"]